bitfinex-derivatives/quotes_BTCF0:USTF0_20260214
["timestamp","ask_amount","ask_price","bid_price","bid_amount"]
[1771105820233,0.014317,69882.0,69875.0,0.0144]
[1771105820734,0.014317,69881.0,69875.0,0.0144]
[1771105821537,0.014318,69880.0,69875.0,0.0144]
[1771105821933,0.014318,69879.0,69875.0,0.0144]
[1771105823134,0.014318,69880.0,69875.0,0.0144]
[1771105823725,0.014317,69881.0,69875.0,0.0144]
[1771105823926,0.014319,69874.0,69870.0,0.1432]
[1771105824134,0.014319,69873.0,69869.0,0.01036102]
[1771105824437,0.01432,69867.0,69866.0,0.0144]
[1771105824832,0.01432,69867.0,69864.0,0.1576]
[1771105825334,0.01432,69867.0,69837.0,0.57784]
[1771105825335,0.014321,69862.0,69856.0,0.157523]
[1771105826632,0.014322,69857.0,69856.0,0.1432]
[1771105826834,0.014323,69856.0,69854.0,0.0144]
[1771105827141,0.014323,69856.0,69852.0,0.0144]
[1771105827326,0.0144,69857.0,69849.0,0.1576]
[1771105827735,0.014323,69854.0,69849.0,0.1576]
[1771105827937,0.014324,69851.0,69848.0,0.0144]
[1771105828137,0.014323,69852.0,69848.0,0.0144]
[1771105828744,0.014324,69852.0,69848.0,0.0144]
[1771105829040,0.014324,69852.0,69844.0,0.00018352]
[1771105829344,0.014324,69852.0,69846.0,0.0144]
[1771105829538,0.014324,69849.0,69846.0,0.0144]
[1771105829935,0.014325,69846.0,69844.0,0.00018352]
[1771105830142,0.014325,69846.0,69843.0,0.1432]
[1771105830641,0.014326,69841.0,69840.0,0.0144]
[1771105830832,0.0144,69845.0,69835.0,0.1432]
[1771105831034,0.014326,69839.0,69835.0,0.1432]
[1771105831843,0.00013285,69844.0,69843.0,0.014325]
[1771105832034,0.0144,69848.0,69845.0,0.014325]
[1771105832347,0.014324,69848.0,69841.0,0.014325]
[1771105832538,0.0144,69849.0,69843.0,0.014325]
[1771105832843,0.028724,69849.0,69843.0,0.014325]
[1771105833046,5.067e-05,69848.0,69843.0,0.014325]
[1771105834139,5.067e-05,69848.0,69844.0,0.014325]
[1771105834343,0.14324,69858.0,69855.0,0.014323]
[1771105834638,0.0144,69857.0,69852.0,0.014323]
[1771105834839,0.0144,69857.0,69855.0,0.014323]
[1771105835037,0.14324,69861.0,69856.0,0.014323]
[1771105835446,0.0144,69860.0,69854.0,0.014323]
[1771105835645,0.014322,69859.0,69853.0,0.014323]
[1771105835842,0.028722,69860.0,69854.0,0.014323]
[1771105836048,0.0144,69860.0,69855.0,0.014323]
[1771105836249,0.001,69858.0,69855.0,0.014323]
[1771105836452,0.0144,69857.0,69855.0,0.014323]
[1771105836849,0.0144,69857.0,69852.0,0.014323]
[1771105837351,0.014323,69856.0,69850.0,0.014324]
[1771105837551,0.0144,69856.0,69850.0,0.014324]
[1771105838851,0.0144,69856.0,69830.0,0.14324]
[1771105838852,0.24646284,69848.0,69830.0,0.14324]
[1771105839044,0.0144,69847.0,69844.0,0.014325]
[1771105839352,0.0144,69848.0,69844.0,0.014325]
[1771105839852,0.00938456,69848.0,69844.0,0.014325]
[1771105840250,0.0144,69848.0,69844.0,0.014325]
[1771105842454,0.0144,69848.0,69842.0,0.014325]
[1771105842657,0.0144,69848.0,69843.0,0.014325]
[1771105843049,0.0144,69848.0,69842.0,0.014325]
[1771105843249,0.0144,69848.0,69841.0,0.0144]
[1771105843250,0.028724,69848.0,69841.0,0.028726]
[1771105843550,0.0144,69848.0,69844.0,0.014325]
[1771105845258,0.0144,69848.0,69844.0,0.02865]
[1771105845448,0.0144,69848.0,69845.0,0.014325]
[1771105849755,0.26748546,69879.0,69845.0,0.02865]
[1771105850057,0.014322,69859.0,69852.0,0.014323]
[1771105850251,0.028722,69858.0,69852.0,0.028646]
[1771105850455,0.14324,69860.0,69857.0,0.014322]
[1771105850657,0.14324,69860.0,69849.0,0.014324]
[1771105850658,0.0144,69859.0,69855.0,0.014323]
[1771105850955,0.0144,69858.0,69856.0,0.014323]
[1771105851150,0.157562,69861.0,69855.0,0.014323]
[1771105851553,0.0144,69860.0,69855.0,0.014323]
[1771105852554,0.0144,69860.0,69854.0,0.014323]
[1771105852755,0.171884,69861.0,69854.0,0.014323]
[1771105852756,0.0144,69859.0,69854.0,0.014323]
[1771105852958,0.0144,69858.0,69854.0,0.014323]
[1771105853154,0.0144,69857.0,69854.0,0.014323]
[1771105853353,0.0144,69856.0,69854.0,0.014323]
[1771105853552,0.00579938,69856.0,69854.0,0.014323]
[1771105853757,0.0144,69856.0,69854.0,0.014323]
[1771105854263,0.0144,69856.0,69852.0,0.014323]
[1771105854759,0.0144,69856.0,69855.0,0.014323]
[1771105855759,0.0144,69856.0,69853.0,0.014323]
[1771105855760,0.0144,69856.0,69854.0,0.014323]
[1771105864362,0.0144,69856.0,69850.0,0.014324]
[1771105864558,0.25316746,69849.0,69828.0,0.24777354]
[1771105864756,0.25316746,69849.0,69801.0,1.43232]
[1771105864757,0.014327,69836.0,69829.0,0.014328]
[1771105864961,0.0144,69836.0,69829.0,0.014328]
[1771105865263,0.25316746,69840.0,69834.0,0.014327]
[1771105865464,0.0144,69839.0,69834.0,0.014327]
[1771105865755,0.0144,69839.0,69825.0,0.014329]
[1771105865756,0.25316746,69859.0,69842.0,0.014325]
[1771105865964,0.014323,69852.0,69846.0,0.014325]
[1771105866266,0.0144,69851.0,69846.0,0.014325]
[1771105866560,0.0144,69851.0,69847.0,0.014324]
[1771105866765,0.0144,69851.0,69846.0,0.014325]
[1771105866960,0.014323,69853.0,69846.0,0.014325]
[1771105867166,0.0144,69852.0,69847.0,0.014324]
[1771105867461,0.014322,69857.0,69848.0,0.014324]
[1771105867659,0.171963,69856.0,69849.0,0.014324]
[1771105867856,0.014323,69854.0,69848.0,0.014324]
[1771105868061,0.014323,69855.0,69848.0,0.014324]
[1771105868263,0.014323,69855.0,69849.0,0.014324]
[1771105868661,0.014323,69855.0,69848.0,0.014324]
[1771105869863,0.15764,69856.0,69853.0,0.014323]
[1771105870063,0.15764,69856.0,69846.0,0.0144]
[1771105870260,0.014323,69854.0,69847.0,0.014324]
[1771105870460,0.014323,69854.0,69839.0,0.24777354]
[1771105870461,0.26749146,69852.0,69844.0,0.014325]
[1771105870657,0.26749046,69856.0,69840.0,0.15764]
[1771105870863,0.26749046,69856.0,69819.0,0.716524]
[1771105870864,0.25316746,69847.0,69833.0,0.0144]
[1771105871070,0.25316746,69845.0,69833.0,0.0144]
[1771105871367,0.014325,69843.0,69834.0,0.014327]
[1771105872163,0.014326,69842.0,69834.0,0.014327]
[1771105872364,0.014326,69841.0,69834.0,0.014327]
[1771105872859,0.014323,69856.0,69849.0,0.014324]
[1771105873059,0.014324,69848.0,69841.0,0.028726]
[1771105873465,0.014324,69849.0,69841.0,0.028726]
[1771105873764,0.014324,69849.0,69836.0,0.014326]
[1771105873964,0.014324,69849.0,69797.0,2.41916666]
[1771105873965,0.014325,69842.0,69830.0,0.014328]
[1771105874168,0.0144,69841.0,69834.0,0.014327]
[1771105874362,0.028726,69841.0,69834.0,0.014327]
[1771105874562,0.028726,69841.0,69832.0,0.014327]
[1771105874762,0.014326,69841.0,69833.0,0.0144]
[1771105874965,0.0144,69843.0,69834.0,0.014327]
[1771105875170,0.0144,69843.0,69833.0,0.0144]
[1771105875171,0.014325,69842.0,69835.0,0.014327]
[1771105875370,0.014325,69842.0,69834.0,0.014327]
[1771105877569,0.028725,69843.0,69833.0,0.0144]
[1771105878171,0.0144,69843.0,69833.0,0.028727]
[1771105878370,0.014326,69840.0,69833.0,0.028727]
[1771105880674,0.014326,69841.0,69834.0,0.014327]
[1771105881372,0.0144,69843.0,69834.0,0.014327]
[1771105881571,0.0144,69843.0,69836.0,0.014327]
[1771105881971,0.001,69842.0,69838.0,0.014326]
[1771105882376,0.001,69841.0,69838.0,0.014326]
[1771105882776,0.014325,69845.0,69838.0,0.014326]
[1771105882777,0.014324,69850.0,69838.0,0.028726]
[1771105883079,0.27188558,69856.0,69838.0,0.028726]
[1771105883080,0.0144,69849.0,69843.0,0.014325]
[1771105883371,0.0144,69848.0,69838.0,0.28977843]
[1771105883571,0.014324,69847.0,69839.0,0.014326]
[1771105888072,0.028724,69848.0,69840.0,0.014326]
[1771105888471,0.014324,69847.0,69840.0,0.014326]
[1771105888676,0.015324,69847.0,69840.0,0.014326]
[1771105888875,0.014324,69847.0,69840.0,0.014326]
[1771105889278,0.001,69846.0,69840.0,0.014326]
[1771105890076,0.001,69845.0,69840.0,0.014326]
[1771105890278,0.014324,69847.0,69840.0,0.014326]
[1771105890477,0.001,69845.0,69840.0,0.014326]
[1771105891178,0.001,69844.0,69840.0,0.014326]
[1771105891373,0.014324,69847.0,69840.0,0.014326]
[1771105891572,0.001,69845.0,69840.0,0.014326]
[1771105892278,0.001,69844.0,69840.0,0.014326]
[1771105892579,0.014324,69847.0,69840.0,0.014326]
[1771105892768,0.001,69844.0,69840.0,0.014326]
[1771105892973,0.014325,69846.0,69840.0,0.014326]
[1771105895584,0.01398513,69846.0,69840.0,0.014326]
[1771105895882,0.014324,69847.0,69840.0,0.014326]
[1771105898283,0.028649,69847.0,69840.0,0.014326]
[1771105899183,0.014325,69846.0,69839.0,0.014326]
[1771105899885,0.014325,69845.0,69838.0,0.028726]
[1771105900084,0.02865,69845.0,69838.0,0.028726]
[1771105900286,0.014325,69845.0,69838.0,0.028726]
[1771105900886,0.014325,69845.0,69838.0,0.043052]
[1771105903586,0.014325,69845.0,69839.0,0.014326]
[1771105904086,0.014325,69845.0,69838.0,0.028726]
[1771105905690,0.0144,69848.0,69844.0,0.014325]
[1771105905890,0.014325,69846.0,69844.0,0.014325]
[1771105906185,0.014325,69846.0,69843.0,0.014325]
[1771105906391,0.0144,69852.0,69847.0,0.014324]
[1771105906687,0.028723,69854.0,69846.0,0.014324]
[1771105906889,0.0144,69854.0,69847.0,0.014324]
[1771105907193,0.0144,69854.0,69848.0,0.014324]
[1771105907491,0.014323,69853.0,69846.0,0.014325]
[1771105907690,0.014324,69851.0,69845.0,0.014325]
[1771105907890,0.014324,69850.0,69844.0,0.0144]
[1771105908487,0.014324,69850.0,69844.0,0.028725]
[1771105908892,0.014324,69851.0,69844.0,0.028725]
[1771105909289,0.014323,69852.0,69844.0,0.028725]
[1771105909489,0.014324,69851.0,69845.0,0.014325]
[1771105910196,0.00601095,69851.0,69845.0,0.014325]
[1771105910595,0.00601095,69851.0,69844.0,0.028725]
[1771105910791,0.0144,69854.0,69848.0,0.014324]
[1771105910993,0.014323,69853.0,69846.0,0.014325]
[1771105911297,0.014323,69853.0,69846.0,0.014324]
[1771105911489,0.014323,69853.0,69846.0,0.028648]
[1771105911684,0.41885128,69860.0,69843.0,0.014325]
[1771105911685,0.27557128,69865.0,69848.0,0.26071738]
[1771105911896,0.014323,69856.0,69849.0,0.014324]
[1771105913095,0.014323,69856.0,69850.0,0.014324]
[1771105913802,0.014323,69856.0,69849.0,0.014324]
[1771105915101,0.014323,69856.0,69849.0,0.028648]
[1771105916100,0.028722,69857.0,69850.0,0.014324]
[1771105916297,0.028722,69857.0,69849.0,0.014324]
[1771105916496,0.0144,69857.0,69851.0,0.014324]
[1771105916802,0.028722,69857.0,69850.0,0.014324]
[1771105918100,0.028722,69857.0,69849.0,0.014324]
[1771105918305,0.028722,69857.0,69848.0,0.0144]
[1771105918306,0.014323,69852.0,69848.0,0.0144]
[1771105918602,0.014323,69854.0,69848.0,0.0144]
[1771105918803,0.014323,69852.0,69848.0,0.0144]
[1771105919503,0.014323,69853.0,69848.0,0.0144]
[1771105920702,0.0144,69856.0,69851.0,0.014323]
[1771105921004,0.0144,69856.0,69850.0,0.014324]
[1771105921404,0.0144,69856.0,69850.0,0.028648]
[1771105921602,0.0144,69856.0,69850.0,0.014324]
[1771105921797,0.028722,69857.0,69850.0,0.014324]
[1771105922612,0.014322,69857.0,69850.0,0.014324]
[1771105922910,0.028722,69857.0,69850.0,0.014324]
[1771105923213,0.014323,69855.0,69848.0,0.028724]
[1771105923511,0.014323,69855.0,69848.0,0.043048]
[1771105924211,0.014323,69856.0,69849.0,0.014324]
[1771105924609,0.028646,69856.0,69849.0,0.014324]
[1771105925004,0.028646,69856.0,69844.0,0.014325]
[1771105925005,0.27557128,69856.0,69843.0,0.14328]
[1771105925214,0.0144,69857.0,69844.0,0.0144]
[1771105925215,0.014324,69850.0,69844.0,0.0144]
[1771105925413,0.014324,69849.0,69844.0,0.0144]
[1771105927710,0.014324,69852.0,69844.0,0.0144]
[1771105928015,0.014323,69852.0,69845.0,0.014325]
[1771105928215,0.028647,69852.0,69845.0,0.014325]
[1771105928514,0.014323,69853.0,69846.0,0.014325]
[1771105928716,0.014323,69852.0,69847.0,0.0144]
[1771105928916,0.028647,69852.0,69847.0,0.0144]
[1771105929115,0.014323,69852.0,69847.0,0.0144]
[1771105930612,0.028723,69855.0,69848.0,0.014324]
[1771105930809,0.0144,69855.0,69848.0,0.014324]
[1771105931010,0.0144,69856.0,69848.0,0.014324]
[1771105931610,0.0144,69856.0,69849.0,0.014324]
[1771105931817,0.014323,69855.0,69848.0,0.014324]
[1771105932018,0.014323,69855.0,69848.0,0.028648]
[1771105932204,0.014323,69855.0,69848.0,0.014324]
[1771105933618,0.014323,69855.0,69847.0,0.028724]
[1771105934118,0.014323,69855.0,69848.0,0.014324]
[1771105935816,0.028723,69856.0,69849.0,0.014324]
[1771105936216,0.0144,69856.0,69850.0,0.014324]
[1771105937718,0.028723,69856.0,69849.0,0.014324]
[1771105937918,0.014323,69855.0,69848.0,0.014324]
[1771105938519,0.028723,69856.0,69849.0,0.014324]
[1771105938520,0.0144,69856.0,69849.0,0.014324]
[1771105938719,0.0144,69856.0,69851.0,0.014324]
[1771105939223,0.0144,69856.0,69850.0,0.014324]
[1771105939421,0.028723,69856.0,69849.0,0.014324]
[1771105940318,0.0144,69856.0,69851.0,0.014324]
[1771105940910,0.0144,69856.0,69852.0,0.014323]
[1771105942420,0.01432,69869.0,69851.0,0.0144]
[1771105942618,0.014321,69865.0,69857.0,0.014322]
[1771105942815,0.028721,69864.0,69857.0,0.014322]
[1771105943216,0.028721,69864.0,69858.0,0.014322]
[1771105943514,0.028721,69864.0,69857.0,0.014322]
[1771105943716,0.028721,69864.0,69857.0,0.028644]
[1771105943921,0.028721,69864.0,69859.0,0.014322]
[1771105944120,0.0144,69863.0,69859.0,0.014322]
[1771105944326,0.0144,69862.0,69859.0,0.014322]
[1771105944524,0.028721,69862.0,69857.0,0.014322]
[1771105946324,0.0144,69862.0,69857.0,0.014322]
[1771105948423,0.0144,69862.0,69856.0,0.014322]
[1771105949529,0.0144,69862.0,69857.0,0.014322]
[1771105949820,0.0144,69862.0,69855.0,0.043046]
[1771105950034,0.028721,69862.0,69855.0,0.028723]
[1771105950526,0.014322,69860.0,69855.0,0.0144]
[1771105950920,0.014322,69861.0,69855.0,0.0144]
[1771105952926,0.014322,69861.0,69855.0,0.028723]
[1771105954529,0.014322,69860.0,69855.0,0.028723]
[1771105957130,0.0144,69862.0,69855.0,0.028723]
[1771105957430,0.014322,69861.0,69855.0,0.028723]
[1771105957825,0.0144,69862.0,69858.0,0.014322]
[1771105958031,0.0144,69863.0,69861.0,0.014321]
[1771105958528,0.01432,69868.0,69862.0,0.014321]
[1771105958732,0.02872,69867.0,69862.0,0.014321]
[1771105958936,0.014319,69874.0,69860.0,0.014322]
[1771105959232,0.15764,69873.0,69865.0,0.014321]
[1771105959530,0.01432,69871.0,69866.0,0.01432]
[1771105959733,0.171959,69873.0,69867.0,0.01432]
[1771105959934,0.0144,69876.0,69871.0,0.014319]
[1771105960127,0.028718,69876.0,69870.0,0.01432]
[1771105960629,0.014317,69885.0,69867.0,0.27638928]
[1771105960829,0.014318,69879.0,69868.0,0.01432]
[1771105961027,0.0144,69878.0,69873.0,0.014319]
[1771105961732,0.0144,69878.0,69875.0,0.014319]
[1771105962029,0.0144,69878.0,69873.0,0.014319]
[1771105963130,0.014317,69881.0,69873.0,0.014319]
[1771105963331,0.028718,69880.0,69871.0,0.014319]
[1771105963529,0.0144,69879.0,69871.0,0.014319]
[1771105963733,0.0144,69879.0,69872.0,0.014319]
[1771105964133,0.0144,69880.0,69877.0,0.014318]
[1771105964337,0.014317,69884.0,69877.0,0.014318]
[1771105964535,0.014317,69884.0,69875.0,0.014319]
[1771105964536,0.028717,69883.0,69874.0,0.028719]
[1771105964738,0.028717,69883.0,69875.0,0.014318]
[1771105965035,0.028717,69883.0,69876.0,0.014318]
[1771105965234,0.0144,69882.0,69876.0,0.014318]
[1771105965633,0.014317,69885.0,69877.0,0.014318]
[1771105965836,0.014318,69880.0,69874.0,0.0144]
[1771105966638,0.014318,69879.0,69874.0,0.0144]
[1771105971840,0.014317,69881.0,69874.0,0.0144]
[1771105972142,0.014317,69881.0,69874.0,0.028719]
[1771105972648,0.028677,69881.0,69874.0,0.028719]
[1771105973943,0.028677,69881.0,69874.0,0.0144]
[1771105974648,0.01436,69881.0,69874.0,0.028719]
[1771105974944,0.01436,69881.0,69875.0,0.014319]
[1771105976150,0.01436,69881.0,69877.0,0.014318]
[1771105978751,0.01436,69881.0,69875.0,0.014318]
[1771105979648,0.01436,69881.0,69877.0,0.014318]
[1771105980947,0.1432,69886.0,69884.0,0.014317]
[1771105981151,0.01436,69885.0,69883.0,0.014317]
[1771105981449,0.01436,69885.0,69882.0,0.014317]
[1771105982546,0.014316,69890.0,69884.0,0.014317]
[1771105982741,0.15756,69889.0,69884.0,0.014317]
[1771105983052,0.014316,69890.0,69884.0,0.014317]
[1771105983240,0.01436,69889.0,69884.0,0.014317]
[1771105983642,0.01436,69889.0,69883.0,0.014317]
[1771105984046,0.01436,69889.0,69884.0,0.014317]
[1771105984251,0.01436,69888.0,69884.0,0.014317]
[1771105984855,0.014316,69890.0,69884.0,0.014317]
[1771105985050,0.01436,69889.0,69884.0,0.014317]
[1771105985639,0.01436,69889.0,69884.0,0.028634]
[1771105985844,0.01436,69888.0,69885.0,0.014316]
[1771105986040,0.014316,69890.0,69885.0,0.014316]
[1771105986250,0.01436,69889.0,69888.0,0.014316]
[1771105988949,0.01436,69891.0,69888.0,0.014316]
[1771105989154,0.01436,69891.0,69890.0,0.014316]
[1771105989853,0.1432,69896.0,69892.0,0.014315]
[1771105990048,0.01436,69895.0,69891.0,0.014315]
[1771105990249,0.01436,69895.0,69892.0,0.014315]
[1771105990449,0.01436,69895.0,69892.0,0.02863]
[1771105991045,0.01436,69895.0,69892.0,0.014315]
[1771105991350,0.01436,69895.0,69892.0,0.02863]
[1771105991550,0.01436,69895.0,69892.0,0.014315]
[1771105992853,0.01436,69895.0,69892.0,0.02863]
[1771105993152,0.01436,69894.0,69892.0,0.014315]
[1771105993351,0.01436,69894.0,69886.0,0.014316]
[1771105993554,0.01436,69894.0,69888.0,0.014316]
[1771105994351,0.01436,69894.0,69890.0,0.014315]
[1771105994555,0.01436,69894.0,69888.0,0.014316]
[1771105994854,0.014315,69894.0,69888.0,0.014316]
[1771105995051,0.01436,69893.0,69888.0,0.014316]
[1771105995450,0.01436,69893.0,69889.0,0.014316]
[1771105999544,0.01436,69892.0,69889.0,0.014316]
[1771106000148,0.1432,69897.0,69884.0,0.01436]
[1771106000349,0.01436,69896.0,69892.0,0.014315]
[1771106000556,0.01436,69895.0,69892.0,0.014315]
[1771106000854,0.157514,69898.0,69890.0,0.014315]
[1771106000855,0.014314,69898.0,69890.0,0.014316]
[1771106001149,0.014314,69897.0,69893.0,0.014315]
[1771106001347,0.01436,69896.0,69892.0,0.014315]
[1771106001542,0.25859391,69904.0,69885.0,0.26701707]
[1771106001751,0.715118,69957.0,69898.0,0.014314]
[1771106001752,0.186186,69903.0,69898.0,0.014314]
[1771106002053,0.171873,69902.0,69898.0,0.014314]
[1771106002256,0.171873,69902.0,69897.0,0.014314]
[1771106002549,0.01436,69901.0,69897.0,0.014314]
[1771106003257,0.01436,69904.0,69903.0,0.014313]
[1771106003448,0.014311,69914.0,69894.0,0.014315]
[1771106003449,0.25859391,69914.0,69905.0,0.014312]
[1771106003645,0.171871,69913.0,69907.0,0.014312]
[1771106003849,0.014311,69912.0,69905.0,0.014312]
[1771106004250,0.10737341,69913.0,69906.0,0.014312]
[1771106004653,0.014311,69913.0,69906.0,0.014312]
[1771106004858,0.028671,69912.0,69906.0,0.014312]
[1771106005054,0.014311,69911.0,69906.0,0.014312]
[1771106005353,0.01436,69910.0,69904.0,0.014313]
[1771106005662,0.01436,69912.0,69911.0,0.014311]
[1771106005958,0.1432,69917.0,69913.0,0.014311]
[1771106006156,0.01436,69916.0,69913.0,0.014311]
[1771106006353,0.01431,69919.0,69914.0,0.014311]
[1771106006655,0.01431,69917.0,69912.0,0.014311]
[1771106006861,0.01436,69916.0,69912.0,0.014311]
[1771106007059,0.02867,69916.0,69912.0,0.014311]
[1771106007260,0.01436,69916.0,69912.0,0.014311]
[1771106007657,0.01431,69917.0,69912.0,0.014311]
[1771106007658,0.01436,69917.0,69913.0,0.014311]
[1771106007857,0.01431,69916.0,69911.0,0.014311]
[1771106008958,0.02862,69916.0,69911.0,0.014311]
[1771106009262,0.01431,69916.0,69911.0,0.014311]
[1771106009657,0.01436,69917.0,69909.0,0.028672]
[1771106009658,0.01431,69917.0,69912.0,0.014311]
[1771106009963,0.01431,69916.0,69911.0,0.014311]
[1771106010461,0.01431,69918.0,69912.0,0.014311]
[1771106010661,0.01431,69917.0,69912.0,0.014311]
[1771106010863,0.01531,69917.0,69912.0,0.014311]
[1771106011661,0.01431,69916.0,69912.0,0.014311]
[1771106012264,0.01431,69916.0,69911.0,0.014311]
[1771106014461,0.01431,69919.0,69911.0,0.014311]
[1771106014864,0.01431,69918.0,69912.0,0.014311]
[1771106015067,0.01431,69918.0,69913.0,0.014311]
[1771106015566,0.02867,69918.0,69913.0,0.014311]
[1771106015862,0.02862,69917.0,69912.0,0.014311]
[1771106016065,0.01431,69916.0,69911.0,0.014311]
[1771106017262,0.01431,69916.0,69905.0,0.25270007]
[1771106017263,0.014313,69905.0,69899.0,0.014314]
[1771106017568,0.27295391,69906.0,69897.0,0.028674]
[1771106017763,0.014313,69905.0,69900.0,0.014313]
[1771106018367,0.014313,69905.0,69899.0,0.014314]
[1771106019268,0.028672,69906.0,69900.0,0.014313]
[1771106019470,0.01436,69907.0,69904.0,0.014313]
[1771106020163,0.01436,69907.0,69903.0,0.014313]
[1771106020367,0.01436,69908.0,69904.0,0.014313]
[1771106020670,0.014311,69915.0,69904.0,0.014313]
[1771106020968,0.014311,69912.0,69906.0,0.014312]
[1771106021266,0.01436,69911.0,69907.0,0.014312]
[1771106023069,0.014311,69910.0,69905.0,0.014312]
[1771106023569,0.028671,69911.0,69906.0,0.014312]
[1771106025064,0.042982,69911.0,69906.0,0.014312]
[1771106025368,0.028671,69911.0,69906.0,0.014312]
[1771106025963,0.014311,69910.0,69905.0,0.014312]
[1771106026568,0.014312,69907.0,69903.0,0.01436]
[1771106026867,0.014313,69901.0,69897.0,0.01436]
[1771106027171,0.014313,69901.0,69894.0,0.028675]
[1771106027172,0.014314,69900.0,69894.0,0.028675]
[1771106027371,0.028673,69901.0,69894.0,0.028675]
[1771106027571,0.028673,69901.0,69895.0,0.014315]
[1771106027871,0.01436,69900.0,69894.0,0.014315]
[1771106028073,0.01436,69900.0,69895.0,0.014315]
[1771106028074,0.028674,69900.0,69895.0,0.014315]
[1771106028668,0.01436,69900.0,69895.0,0.014315]
[1771106029269,0.014313,69901.0,69895.0,0.014315]
[1771106029468,0.01436,69900.0,69895.0,0.014315]
[1771106030669,0.014313,69901.0,69893.0,0.014315]
[1771106030670,0.014311,69914.0,69893.0,0.24011856]
[1771106030867,0.014312,69909.0,69901.0,0.014313]
[1771106031168,0.014312,69907.0,69901.0,0.014313]
[1771106031562,0.014311,69914.0,69908.0,0.014312]
[1771106031770,0.028671,69913.0,69908.0,0.014312]
[1771106032575,0.014311,69913.0,69908.0,0.014312]
[1771106032771,0.01436,69912.0,69908.0,0.014312]
[1771106033363,0.014311,69913.0,69909.0,0.014312]
[1771106033570,0.14316,69916.0,69910.0,0.014311]
[1771106033772,0.001,69914.0,69911.0,0.014311]
[1771106034474,0.01436,69913.0,69911.0,0.014311]
[1771106034976,0.15747,69917.0,69912.0,0.014311]
[1771106035176,0.02867,69916.0,69911.0,0.014311]
[1771106035376,0.01431,69917.0,69908.0,0.014312]
[1771106035377,0.01436,69915.0,69913.0,0.014311]
[1771106036074,0.01436,69915.0,69914.0,0.014311]
[1771106036270,0.01436,69916.0,69915.0,0.01431]
[1771106036666,0.01436,69916.0,69914.0,0.026311]
[1771106036970,0.01436,69916.0,69915.0,0.01431]
[1771106037369,0.01436,69916.0,69914.0,0.012]
[1771106037565,0.01431,69918.0,69914.0,0.012]
[1771106037777,0.01436,69917.0,69914.0,0.026311]
[1771106038478,0.02867,69917.0,69914.0,0.012]
[1771106038875,0.01436,69917.0,69914.0,0.012]
[1771106039076,0.02867,69917.0,69914.0,0.012]
[1771106039277,0.01436,69917.0,69914.0,0.012]
[1771106039781,0.014309,69924.0,69918.0,0.01431]
[1771106039971,0.01436,69923.0,69918.0,0.01431]
[1771106040174,0.01436,69923.0,69921.0,0.014309]
[1771106040475,0.01436,69923.0,69920.0,0.014309]
[1771106040676,0.014307,69931.0,69924.0,0.014309]
[1771106040877,0.014307,69933.0,69917.0,0.01431]
[1771106040878,0.014308,69928.0,69923.0,0.014309]
[1771106041175,0.028668,69927.0,69922.0,0.014309]
[1771106041375,0.028668,69927.0,69921.0,0.014309]
[1771106041883,0.028668,69927.0,69920.0,0.014309]
[1771106042078,0.028668,69927.0,69918.0,0.01431]
[1771106042079,0.014308,69925.0,69918.0,0.01431]
[1771106042273,0.014308,69925.0,69915.0,0.01431]
[1771106042274,0.014309,69922.0,69915.0,0.01431]
[1771106042476,0.028669,69924.0,69916.0,0.01431]
[1771106042671,0.028669,69924.0,69917.0,0.01431]
[1771106042879,0.014309,69923.0,69917.0,0.01431]
[1771106043178,0.014309,69923.0,69920.0,0.012]
[1771106044682,0.014309,69922.0,69920.0,0.012]
[1771106046473,0.01436,69923.0,69920.0,0.012]
[1771106047776,0.028669,69923.0,69920.0,0.012]
[1771106048984,0.029669,69923.0,69920.0,0.012]
[1771106049182,0.01536,69923.0,69920.0,0.012]
[1771106049382,0.01536,69923.0,69922.0,0.014309]
[1771106049585,0.01536,69923.0,69921.0,0.014309]
[1771106049786,0.01436,69923.0,69921.0,0.014309]
[1771106049985,0.01436,69923.0,69914.0,0.01436]
[1771106050285,0.01436,69923.0,69922.0,0.012]
[1771106050485,0.01436,69923.0,69918.0,0.01431]
[1771106050991,0.014308,69925.0,69919.0,0.01431]
[1771106051174,0.014306,69939.0,69928.0,0.014308]
[1771106051379,0.014308,69928.0,69919.0,0.014309]
[1771106051582,0.014308,69926.0,69918.0,0.02867]
[1771106051884,0.014309,69924.0,69918.0,0.02867]
[1771106052282,0.014309,69923.0,69918.0,0.01436]
[1771106052482,0.014309,69924.0,69918.0,0.01436]
[1771106053483,0.028668,69925.0,69918.0,0.02867]
[1771106054081,0.01436,69925.0,69919.0,0.01431]
[1771106054282,0.25213727,69934.0,69924.0,0.014309]
[1771106054481,0.014307,69931.0,69924.0,0.014309]
[1771106054783,0.15748,69933.0,69922.0,0.014309]
[1771106054784,0.01436,69930.0,69925.0,0.014308]
[1771106055088,0.01436,69930.0,69926.0,0.014308]
[1771106055387,0.01436,69929.0,69926.0,0.014308]
[1771106056285,0.014307,69932.0,69926.0,0.014308]
[1771106056687,0.01436,69931.0,69926.0,0.014308]
[1771106056880,0.01436,69931.0,69927.0,0.014308]
[1771106058187,0.014307,69932.0,69927.0,0.014308]
[1771106058486,0.01436,69930.0,69928.0,0.014308]
[1771106058679,0.01436,69929.0,69927.0,0.014308]
[1771106059591,0.01436,69929.0,69928.0,0.014308]
[1771106059892,0.014307,69932.0,69928.0,0.014308]